{"text_format":"1","workbook":"xlsx","n_sheets":4,"sheets":["Ecole","Elèves","Attestation","Feuil3"],"not_rendered":{"charts":0,"images":4,"macros":1,"external_links":0,"defined_names":1,"comments":0,"pivot_tables":0},"unopened":[],"bounds":{"document_bytes":16777216,"sheet_cells":100000,"rows_first":2000,"rows_last":500,"rows_between":2000,"halvings":0,"cell_chars":16384,"cell_head_chars":4096},"cells_cut":0,"cells_raw":0,"read":"whole","date_system":"1900"}

{"sheet":"Ecole","index":0,"n_rows":25,"n_cols":4,"rows_kept":25,"cut":false,"hidden":false,"merged":[]}
[]
[]
[]
[]
[null,null,null,"Truc"]
[]
[]
[]
[]
[]
[]
[]
[]
[]
[]
["Renseignements :"]
[]
["Année scolaire :"]
["Ecole :"]
["Enseignant(e) :",null,"Indiquez avant le nom  Mme ou M."]
[]
["Date d'édition des attestations (JJ/MM/AAAA) :"]
[]
["Direction :","Directrice :"]
["Nom :",null,"Indiquez avant le nom  Mme ou M."]

{"sheet":"Elèves","index":1,"n_rows":31,"n_cols":13,"rows_kept":31,"cut":false,"hidden":false,"merged":[]}
["Elèves","Nom","Prénom","Niveau de classe","1.1 Rechercher sur internet","1.1 Vérifier les informations en ligne","1.2 Organiser des fichiers et des dossiers","2.1 Communiquer en ligne avec respect","3.1 Utiliser un traitement de texte","4.2 Protéger ses données personnelles","4.3 Limiter l’impact des appareils numériques sur l’environnement","4.3 Lutter contre le cyberharcèlement","5.2 Découvrir la souris"]
[1]
[{"$f":"A2+1","v":2}]
[{"$f":"A3+1","v":3}]
[4]
[5]
[6]
[7]
[8]
[9]
[10]
[11]
[12]
[13]
[14]
[15]
[16]
[17]
[18]
[19]
[20]
[21]
[22]
[23]
[24]
[{"$f":"A25+1","v":25}]
[26]
[27]
[28]
[{"$f":"A29+1","v":29}]
[30]

{"sheet":"Attestation","index":2,"n_rows":28,"n_cols":7,"rows_kept":28,"cut":false,"hidden":false,"merged":[[20,0,20,5],[21,0,21,5],[1,0,1,6],[2,0,2,6],[17,0,17,5],[19,0,19,5],[12,0,12,5],[14,0,14,5],[13,0,13,5],[15,0,15,5],[16,0,16,5],[18,0,18,5]]}
[]
["Validation des compétences numériques"]
[{"$f":"Ecole!B18","v":0}]
[]
[null,null,"Nom :",null,null,"Prénom :",{"$f":"IFERROR(VLOOKUP(Attestation!D5, Elèves!B2:M31,2, FALSE), \"\")","v":""}]
[]
[null,null,"Ecole : ",{"$f":"IF(Ecole!B19=\"\",\"\",Ecole!B19)","v":""}]
[]
[null,null,"Classe : ",{"$f":"IFERROR(VLOOKUP(Attestation!D5,Elèves!B2:M31,3,FALSE), \"\")","v":""}]
[]
[null,null,"Enseignant(e) : ",null,{"$f":"IF(Ecole!B20=\"\",\"\",Ecole!B20)","v":""}]
[]
["Missions\nCompétences CRCN",null,null,null,null,null,"Evaluation\nde la mission"]
["Rechercher sur internet\n1.1 Mener une recherche et une veille - Niveau 1",null,null,null,null,null,{"$f":"IFERROR(VLOOKUP(Attestation!D5,Elèves!B2:M31,4,FALSE), \"\")","v":""}]
["Vérifier les informations en ligne\n1.1 Mener une recherche et une veille d’information - Niveau 2",null,null,null,null,null,{"$f":"IFERROR(VLOOKUP(Attestation!D5,Elèves!B2:M31,5,FALSE)&\"\", \"\")","v":""}]
["Organiser des fichiers et des dossiers\n1,2 Gérer les données - Niveau 1",null,null,null,null,null,{"$f":"IFERROR(VLOOKUP(Attestation!D5,Elèves!B2:M31,6,FALSE)&\"\", \"\")","v":""}]
["Communiquer en ligne avec respect\n2.1 Interagir - Niveau 2",null,null,null,null,null,{"$f":"IFERROR(VLOOKUP(Attestation!D5,Elèves!B2:M31,7,FALSE)&\"\", \"\")","v":""}]
["Utiliser un traitement de texte\n3.1 Développer des documents textuels - Niveau 1",null,null,null,null,null,{"$f":"IFERROR(VLOOKUP(Attestation!D5,Elèves!B2:M31,8,FALSE)&\"\", \"\")","v":""}]
["Protéger ses données personnelles\n4.2 Protéger les données personelles et la vie privée - Niveau 1",null,null,null,null,null,{"$f":"IFERROR(VLOOKUP(Attestation!D5,Elèves!B2:M31,9,FALSE)&\"\", \"\")","v":""}]
["Limiter l’impact des appareils numériques sur l’environnement\n4.3 Protéger la santé, le bien-être et l’environnement - Niveau 2",null,null,null,null,null,{"$f":"IFERROR(VLOOKUP(Attestation!D5,Elèves!B2:M31,10,FALSE)&\"\", \"\")","v":""}]
["Lutter contre le cyberharcèlement\n4.3 Protéger la santé, le bien-être et l'environnement - Niveau 2",null,null,null,null,null,{"$f":"IFERROR(VLOOKUP(Attestation!D5,Elèves!B2:M31,11,FALSE)&\"\", \"\")","v":""}]
["Découvrir la souris\n5.2 Construire un environnement numérique - Niveau 1",null,null,null,null,null,{"$f":"IFERROR(VLOOKUP(Attestation!D5,Elèves!B2:M31,12,FALSE)&\"\", \"\")","v":""}]
[]
["Date :",{"$f":"IF(Ecole!C22=\"\",\"\",Ecole!C22)","v":""}]
[]
[null,null,null,null,{"$f":"Ecole!B24","v":"Directrice :"},{"$f":"IF(Ecole!B25=\"\",\"\",Ecole!B25)","v":""}]
[]
[null,null,null,null,"Signature :"]

{"sheet":"Feuil3","index":3,"n_rows":13,"n_cols":8,"rows_kept":13,"cut":false,"hidden":true,"merged":[]}
[]
[]
[null,null,null,null,"-","-"]
[null,null,"Pas d'évaluation",null,"CM1","Directeur :"]
[null,null,"Non atteint",null,"CM2","Directrice :"]
[null,null,"Partiellement atteint"]
[null,null,"Atteint"]
[null,null,"Dépassé"]
[]
[]
[]
[]
[null,null,null,null,null,null,null,"-"]